bitfinex/quotes_SOLUSD_20240727
["timestamp","ask_amount","ask_price","bid_price","bid_amount"]
[1722075661841,12.43,186.4,186.28,15.1015]
[1722075662133,19.13200562,186.4,186.34,12.43]
[1722075662455,13.76720562,186.39,186.32,12.43]
[1722075662960,1.33720562,186.39,186.33,12.43]
[1722075663943,6.70230562,186.39,186.33,12.43]
[1722075664545,5.3651,186.39,186.33,12.43]
[1722075665341,6.70230562,186.39,186.33,12.43]
[1722075665847,1.33720562,186.39,186.33,12.43]
[1722075666050,12.43,186.41,186.34,12.43]
[1722075668046,17.7945,186.41,186.34,12.43]
[1722075668775,17.7945,186.41,186.3,12.43]
[1722075668776,20.5797,186.43,186.36,12.43]
[1722075669062,37.7942,186.42,186.36,12.43]
[1722075670140,20.0,186.42,186.36,12.43]
[1722075671637,25.3643,186.42,186.36,12.43]
[1722075672638,21.91690562,186.43,186.37,12.43]
[1722075672843,15.1208,186.47,186.39,12.43]
[1722075673051,15.1208,186.47,186.4,12.43]
[1722075673052,27.5508,186.47,186.4,12.43]
[1722075673258,5.3631,186.46,186.4,12.43]
[1722075673850,5.3635,186.45,186.39,12.43]
[1722075676869,6.70070562,186.45,186.39,12.43]
[1722075677551,5.3635,186.45,186.39,12.43]
[1722075678070,17.793,186.46,186.39,12.43]
[1722075678664,5.3634,186.45,186.39,12.43]
[1722075678951,6.70060562,186.45,186.39,12.43]
[1722075679168,5.3634,186.45,186.39,12.43]
[1722075679671,27.5508,186.47,186.4,12.43]
[1722075679971,20.0,186.46,186.41,12.43]
[1722075681162,25.363,186.46,186.4,12.43]
[1722075681575,5.3634,186.45,186.34,16.1279]
[1722075681750,6.70060562,186.45,186.39,12.43]
[1722075682472,13.76720562,186.45,186.39,12.43]
[1722075682777,12.43,186.42,186.36,12.43]
[1722075683455,17.7943,186.42,186.35,12.43]
[1722075683799,5.3641,186.43,186.36,12.43]
[1722075683961,12.43,186.43,186.36,12.43]
[1722075684272,20.0,186.46,186.37,12.43]
[1722075684469,25.363,186.46,186.4,12.43]
[1722075684677,25.363,186.46,186.35,16.1754]
[1722075684678,20.0,186.46,186.35,16.1754]
[1722075684863,20.0,186.46,186.4,12.43]
[1722075685767,25.3631,186.46,186.4,12.43]
[1722075686164,25.3631,186.46,186.41,12.43]
[1722075690876,5.3633,186.45,186.41,12.43]
[1722075691480,5.3633,186.45,186.4,12.43]
[1722075692176,5.3636,186.44,186.4,12.43]
[1722075692374,5.3636,186.44,186.39,12.43]
[1722075693480,5.3639,186.43,186.38,12.43]
[1722075694071,17.7939,186.43,186.37,12.43]
[1722075694272,5.3642,186.42,186.36,12.43]
[1722075694574,12.43,186.4,186.33,12.43]
[1722075694781,5.3636,186.45,186.36,12.43]
[1722075694988,32.43,186.44,186.37,12.43]
[1722075695586,20.0,186.44,186.37,12.43]
[1722075695791,21.33720562,186.44,186.37,12.43]
[1722075695965,32.43,186.44,186.37,12.43]
[1722075696370,20.0,186.44,186.37,12.43]
[1722075696571,12.43,186.44,186.37,12.43]
[1722075698369,17.7936,186.44,186.37,12.43]
[1722075699376,17.7936,186.44,186.36,12.43]
[1722075699674,17.7936,186.44,186.37,45.0]
[1722075699874,5.3636,186.44,186.37,45.0]
[1722075700068,17.7936,186.44,186.37,45.0]
[1722075700485,5.59513812,186.46,186.37,57.43]
[1722075700668,32.43,186.45,186.38,12.43]
[1722075700991,20.0,186.45,186.39,57.43]
[1722075701773,25.3634,186.45,186.39,57.43]
[1722075702372,5.3634,186.45,186.39,45.0]
[1722075703586,17.7934,186.45,186.39,45.0]
[1722075703789,17.7934,186.45,186.38,45.0]
[1722075704475,5.3642,186.42,186.35,12.43]
[1722075704681,5.3642,186.42,186.34,12.43]
[1722075704983,12.43,186.41,186.35,45.0]
[1722075706493,12.43,186.39,186.32,12.43]
[1722075708015,12.43,186.39,186.33,45.0]
[1722075714200,12.43,186.38,186.33,45.0]
[1722075714392,12.43,186.37,186.3,12.43]
[1722075714601,12.43,186.37,186.31,45.0]
[1722075714897,12.43,186.37,186.3,57.43]
[1722075720588,12.43,186.37,186.3,45.0]
[1722075720783,12.43,186.37,186.31,12.43]
[1722075721082,12.43,186.37,186.32,45.0]
[1722075722196,12.43,186.35,186.26,15.1675]
[1722075722394,1.33720562,186.36,186.26,15.1675]
[1722075722395,12.43,186.34,186.26,15.1675]
[1722075722590,12.43,186.34,186.27,12.43]
[1722075723007,12.43,186.34,186.21,50.79339917]
[1722075723208,13.76720562,186.33,186.21,65.5755]
[1722075723406,12.43,186.32,186.25,12.43]
[1722075723609,12.43,186.31,186.25,12.43]
[1722075724429,12.43,186.32,186.25,12.43]
[1722075728294,24.39250562,186.34,186.27,12.43]
[1722075728501,36.82250562,186.34,186.28,45.0]
[1722075728827,35.4853,186.34,186.28,45.0]
[1722075729718,23.0553,186.34,186.29,12.43]
[1722075729903,28.4206,186.39,186.3,12.43]
[1722075730106,12.43,186.37,186.3,12.43]
[1722075730893,12.43,186.38,186.31,12.43]
[1722075731411,17.7953,186.38,186.31,12.43]
[1722075732511,12.43,186.37,186.31,12.43]
[1722075732717,12.43,186.37,186.3,12.43]
[1722075733527,12.43,186.36,186.3,12.43]
[1722075733723,5.3653,186.38,186.3,12.43]
[1722075734026,12.43,186.36,186.3,12.43]
[1722075734322,12.43,186.36,186.29,12.43]
[1722075734539,12.43,186.36,186.3,45.0]
[1722075735635,12.43,186.35,186.29,12.43]
[1722075735839,12.43,186.34,186.27,12.43]
[1722075736036,12.43,186.34,186.28,45.0]
[1722075738429,18.02907475,186.35,186.28,57.43]
[1722075741128,13.76720562,186.35,186.28,57.43]
[1722075741518,12.43,186.35,186.28,57.43]
[1722075743023,12.43,186.34,186.28,45.0]
[1722075744430,12.43,186.34,186.27,12.43]
[1722075747423,13.76720562,186.35,186.28,12.43]
[1722075748437,12.43,186.34,186.27,12.43]
[1722075752322,12.43,186.32,186.21,16.9291572]
[1722075752642,12.43,186.31,186.24,12.43]
[1722075753730,12.43,186.31,186.25,45.0]
[1722075755051,29.47900562,186.33,186.26,12.43]
[1722075759645,28.1418,186.33,186.26,12.43]
[1722075761332,28.1418,186.33,186.27,12.43]
[1722075765750,15.7118,186.33,186.27,12.43]
[1722075767258,28.1418,186.33,186.27,12.43]
[1722075767955,28.1418,186.33,186.26,12.43]
[1722075771459,15.7118,186.33,186.26,12.43]
[1722075771838,15.7118,186.33,186.27,57.43]
[1722075772039,10.96064694,186.36,186.25,46.07363396]
[1722075772040,12.43,186.35,186.28,12.43]
[1722075772461,19.13340562,186.36,186.29,57.43]
[1722075772650,20.0,186.35,186.29,12.43]
[1722075773740,1.33720562,186.34,186.29,12.43]
[1722075774058,37.7962,186.35,186.28,12.43]
[1722075774356,37.7962,186.35,186.29,45.0]
[1722075776647,37.7962,186.35,186.28,45.0]
[1722075777764,12.43,186.34,186.26,12.43]
[1722075778064,5.3668,186.33,186.26,12.43]
[1722075778868,20.0,186.35,186.26,12.43]
[1722075779037,5.3665,186.34,186.27,45.0]
[1722075779549,6.70400562,186.33,186.26,12.43]
[1722075780262,12.43,186.32,186.25,12.43]
[1722075780855,12.43,186.29,186.22,12.43]
[1722075781056,17.7983,186.28,186.21,12.43]
[1722075781394,1.33720562,186.27,186.21,12.43]
[1722075781932,12.43,186.27,186.2,12.43]
[1722075782168,1.33720562,186.28,186.2,12.43]
[1722075782349,12.43,186.3,186.23,12.43]
[1722075782545,20.0,186.29,186.23,12.43]
[1722075783767,12.43,186.3,186.23,12.43]
[1722075784765,17.7977,186.3,186.23,12.43]
[1722075786354,17.7977,186.3,186.17,16.4334]
[1722075786355,12.43,186.28,186.21,12.43]
[1722075786564,17.7983,186.28,186.21,12.43]
[1722075787276,17.7983,186.28,186.22,12.43]
[1722075788473,17.7983,186.28,186.17,16.4334]
[1722075788474,1.33720562,186.27,186.17,16.4334]
[1722075788674,6.70580562,186.27,186.22,12.43]
[1722075789170,17.7986,186.27,186.2,12.43]
[1722075792071,17.7986,186.27,186.17,16.4334]
[1722075792273,17.7988,186.26,186.19,12.43]
[1722075793072,17.7988,186.26,186.13,16.2814847]
[1722075793073,12.43,186.24,186.13,16.2814847]
[1722075793276,12.43,186.23,186.17,12.43]
[1722075793457,12.43,186.24,186.17,12.43]
[1722075793647,12.43,186.24,186.14,20.0]
[1722075793845,12.43,186.24,186.17,12.43]
[1722075794871,17.7995,186.24,186.17,12.43]
[1722075795057,19.13670562,186.24,186.16,12.43]
[1722075795258,17.7998,186.23,186.16,12.43]
[1722075795670,5.3699,186.22,186.16,12.43]
[1722075796069,17.7997,186.23,186.16,12.43]
[1722075796951,17.70660562,186.25,186.13,0.7993847]
[1722075796952,17.8001,186.22,186.13,0.7993847]
[1722075797148,5.3702,186.21,186.14,12.43]
[1722075797362,17.8002,186.21,186.14,12.43]
[1722075797572,5.3702,186.21,186.15,12.43]
[1722075798074,5.3697,186.23,186.16,12.43]
[1722075798276,5.3697,186.23,186.13,0.7993847]
[1722075798277,17.7997,186.23,186.17,12.43]
[1722075799053,5.3699,186.22,186.17,12.43]
[1722075799254,5.3699,186.22,186.16,12.43]
[1722075799665,5.3703,186.21,186.15,12.43]
[1722075800269,6.70750562,186.21,186.13,0.7993847]
[1722075800472,5.3703,186.21,186.15,12.43]
[1722075800676,5.3703,186.21,186.14,12.43]
[1722075800875,6.70750562,186.21,186.14,12.43]
[1722075801574,5.3703,186.21,186.14,12.43]
[1722075801782,12.43,186.22,186.14,12.43]
[1722075801973,5.3703,186.21,186.15,12.43]
[1722075802758,13.76720562,186.23,186.16,12.43]
[1722075803083,20.0,186.22,186.17,12.43]
[1722075803374,20.0,186.22,186.16,12.43]
[1722075803375,25.3699,186.22,186.16,12.43]
[1722075803560,37.7999,186.22,186.15,12.43]
[1722075807168,5.3703,186.21,186.15,12.43]
[1722075807589,5.3706,186.2,186.15,12.43]
[1722075808090,5.3709,186.19,186.13,0.7993847]
[1722075808385,5.3706,186.2,186.14,12.43]
[1722075809188,1.33720562,186.19,186.14,12.43]
[1722075809396,6.70810562,186.19,186.14,12.43]
[1722075810094,1.33720562,186.19,186.14,12.43]
[1722075810969,5.3706,186.2,186.14,12.43]
[1722075811669,6.70780562,186.2,186.14,12.43]
[1722075812286,5.3706,186.2,186.14,12.43]
[1722075813686,5.3706,186.2,186.15,12.43]
[1722075813897,32.43,186.22,186.15,12.43]
[1722075813898,5.3703,186.21,186.15,12.43]
[1722075815092,5.3706,186.2,186.15,12.43]
[1722075816171,5.3703,186.21,186.15,12.43]
[1722075816492,5.3703,186.21,186.16,12.43]
[1722075817999,5.3703,186.21,186.13,0.7993847]
[1722075818193,5.3703,186.21,186.16,12.43]
[1722075818495,5.3703,186.21,186.15,12.43]
[1722075819300,5.3706,186.2,186.15,12.43]
[1722075819593,5.3706,186.2,186.14,12.43]
[1722075820392,5.3706,186.2,186.15,12.43]
[1722075822990,5.3706,186.2,186.16,12.43]
[1722075823201,5.3703,186.21,186.16,12.43]
[1722075823495,16.3694,186.25,186.2,12.43]
[1722075823692,16.3694,186.25,186.21,12.43]
[1722075823999,15.5377,186.29,186.23,12.43]
[1722075824477,20.9057,186.29,186.24,12.43]
[1722075825194,20.9057,186.29,186.23,12.43]
[1722075825602,5.3683,186.28,186.23,12.43]
[1722075826415,5.59809853,186.32,186.27,12.43]
[1722075826611,15.5377,186.33,186.22,1.07359346]
[1722075826902,15.5377,186.33,186.28,12.43]
[1722075827089,15.5377,186.33,186.29,12.43]
[1722075827485,15.5377,186.33,186.3,12.43]
[1722075828276,12.43,186.37,186.3,12.43]
[1722075828605,12.43,186.37,186.22,66.07359346]
[1722075828606,5.3656,186.37,186.31,12.43]
[1722075829803,33.3331,186.38,186.31,12.43]
[1722075830192,33.3331,186.38,186.22,82.20359346]
[1722075830193,20.9031,186.38,186.32,12.43]
[1722075831008,15.5377,186.38,186.32,12.43]
[1722075832484,27.9677,186.38,186.32,12.43]
[1722075833929,12.43,186.37,186.31,12.43]
[1722075834113,17.7959,186.36,186.29,12.43]
[1722075834287,17.7959,186.36,186.3,45.0]
[1722075834486,12.43,186.36,186.3,45.0]
[1722075834802,12.43,186.36,186.29,12.43]
[1722075834803,12.43,186.35,186.28,12.43]
[1722075834993,12.43,186.35,186.29,45.0]
[1722075835188,12.43,186.32,186.25,12.43]
[1722075835593,13.76720562,186.32,186.25,12.43]
[1722075836602,12.43,186.32,186.25,12.43]
[1722075836800,13.76720562,186.32,186.25,12.43]
[1722075837200,12.43,186.31,186.25,12.43]
[1722075837401,12.43,186.29,186.23,12.43]
[1722075837710,12.43,186.29,186.22,12.43]
[1722075837711,13.76720562,186.29,186.22,12.43]
[1722075838095,12.43,186.29,186.22,12.43]
[1722075839401,12.43,186.29,186.23,12.43]
[1722075840094,12.43,186.29,186.22,12.43]
[1722075840416,12.43,186.29,186.16,15.1287]
[1722075840417,12.43,186.26,186.14,6.4654]
[1722075840727,13.76720562,186.25,186.18,12.43]
[1722075841009,12.43,186.25,186.18,12.43]
[1722075841430,12.43,186.26,186.19,12.43]
[1722075841730,12.43,186.25,186.18,12.43]
[1722075841894,5.3695,186.24,186.13,0.7993847]
[1722075842097,12.43,186.22,186.13,0.7993847]
[1722075842395,13.76720562,186.21,186.14,12.43]
[1722075842598,13.76720562,186.21,186.13,0.7993847]
[1722075842812,13.76720562,186.21,186.14,12.43]
[1722075844815,12.43,186.21,186.14,12.43]
[1722075844996,1.33720562,186.2,186.13,0.7993847]
[1722075845191,21.2013,186.23,186.15,12.43]
[1722075845391,33.6313,186.23,186.16,12.43]
[1722075845697,20.0,186.22,186.16,12.43]
[1722075846726,20.0,186.22,186.13,0.7993847]
[1722075847027,20.0,186.22,186.16,12.43]
[1722075847320,20.0,186.22,186.13,0.7993847]
[1722075847500,25.37,186.22,186.16,12.43]
[1722075847699,25.37,186.22,186.13,0.7993847]
[1722075847901,25.37,186.22,186.16,12.43]
[1722075848120,25.37,186.22,186.15,12.43]
[1722075848711,20.0,186.22,186.15,12.43]
[1722075849019,20.0,186.22,186.13,0.7993847]
[1722075849214,20.0,186.22,186.16,12.43]
[1722075849909,25.37,186.22,186.13,0.7993847]
[1722075850102,25.37,186.22,186.16,12.43]
[1722075850703,20.0,186.22,186.16,12.43]
[1722075851111,25.37,186.22,186.16,12.43]
[1722075851634,25.37,186.22,186.13,0.7993847]
[1722075851635,1.33720562,186.21,186.13,0.7993847]
[1722075851927,25.3701,186.22,186.16,12.43]
[1722075852144,20.0,186.22,186.17,12.43]
[1722075853741,5.371,186.19,186.13,0.7993847]
[1722075854035,5.3705,186.2,186.14,12.43]
[1722075854234,5.3705,186.2,186.15,12.43]
[1722075858048,12.43,186.21,186.13,0.7993847]
[1722075858255,5.3711,186.19,186.14,12.43]
[1722075858749,6.70780562,186.2,186.14,12.43]
[1722075858953,5.3716,186.17,186.13,0.7993847]
[1722075859156,1.33720562,186.2,186.14,12.43]
[1722075859539,6.70780562,186.2,186.14,12.43]
[1722075860455,6.70780562,186.2,186.15,12.43]
[1722075860644,5.3706,186.2,186.15,12.43]
[1722075860839,17.8003,186.21,186.15,12.43]
[1722075861339,5.3706,186.2,186.15,12.43]
[1722075861852,6.70780562,186.2,186.13,0.7993847]
[1722075862150,6.70780562,186.2,186.15,12.43]
[1722075862353,5.3706,186.2,186.15,12.43]
[1722075865857,6.70780562,186.2,186.15,12.43]
[1722075866231,5.3708,186.19,186.13,0.7993847]
[1722075866455,6.70850562,186.18,186.13,0.7993847]
[1722075866641,1.33720562,186.17,186.13,0.7993847]
[1722075866834,12.43,186.19,186.13,0.7993847]
[1722075866835,5.3712,186.18,186.13,0.7993847]
[1722075867233,12.43,186.19,186.13,0.7993847]
[1722075867234,6.70860562,186.17,186.13,0.7993847]
[1722075867450,12.43,186.21,186.14,12.43]
[1722075867643,20.0,186.2,186.14,12.43]
[1722075868157,20.0,186.2,186.13,0.7993847]
[1722075868158,32.43,186.2,186.13,13.2293847]
[1722075869049,5.3711,186.18,186.13,13.2293847]
[1722075869238,5.3708,186.19,186.13,13.2293847]
[1722075869435,5.3711,186.18,186.13,0.7993847]
[1722075869655,6.70830562,186.18,186.13,13.2293847]
[1722075870265,1.33720562,186.17,186.13,0.7993847]
[1722075870460,6.70890562,186.17,186.13,0.7993847]
[1722075870765,5.3712,186.18,186.13,0.7993847]
[1722075870963,12.43,186.19,186.13,0.7993847]
[1722075871134,5.3712,186.18,186.13,0.7993847]
[1722075871551,5.3712,186.18,186.13,13.2293847]
[1722075871756,5.3712,186.18,186.13,0.7993847]
[1722075872940,5.3712,186.18,186.13,13.2293847]
[1722075873139,5.3722,186.15,186.13,0.7993847]
[1722075873364,1.33720562,186.18,186.13,0.7993847]
[1722075873660,6.70860562,186.17,186.13,0.7993847]
[1722075874263,5.3718,186.16,186.13,0.7993847]
[1722075874467,1.33720562,186.15,186.13,0.7993847]
[1722075875654,6.70860562,186.17,186.13,0.7993847]
[1722075877078,5.3717,186.16,186.13,0.7993847]
[1722075877251,1.33720562,186.15,186.13,0.7993847]
[1722075877452,1.33720562,186.14,186.13,0.7993847]
[1722075878451,1.33720562,186.16,186.13,0.7993847]
[1722075878954,1.33720562,186.15,186.13,0.7993847]
[1722075879256,28.3811,186.17,186.13,0.7993847]
[1722075879257,20.0,186.16,186.13,0.7993847]
[1722075879767,1.33720562,186.15,186.13,0.7993847]
[1722075880574,1.33720562,186.14,186.13,0.7993847]
[1722075880879,19.13950562,186.14,186.13,0.7993847]
[1722075881080,44.70573407,186.14,186.13,0.7993847]
[1722075883070,39.33343407,186.14,186.02,6.1328]
[1722075883366,5.3732,186.11,186.02,6.1328]
[1722075883556,6.71040562,186.11,186.05,12.43]
[1722075883755,12.43,186.12,186.05,12.43]
[1722075883756,17.8029,186.12,186.05,12.43]
[1722075884258,17.8029,186.12,186.01,24.80322529]
[1722075884259,13.76720562,186.12,186.01,24.80322529]
[1722075884465,12.43,186.1,186.03,12.43]
[1722075884763,25.3726,186.13,186.06,12.43]
[1722075884956,20.0,186.13,186.07,12.43]
[1722075885155,25.3727,186.13,186.07,12.43]
[1722075886053,5.3729,186.12,186.07,12.43]
[1722075888185,6.71010562,186.12,186.07,12.43]
[1722075888469,5.3734,186.1,186.05,12.43]
[1722075889453,6.71000562,186.12,186.07,12.43]
[1722075889959,5.3728,186.12,186.07,12.43]
[1722075890659,5.3728,186.12,186.01,15.5222]
[1722075890860,5.3728,186.12,186.07,12.43]
[1722075891456,5.3728,186.12,186.06,12.43]
[1722075891656,33.76720562,186.13,186.06,12.43]
[1722075891865,5.3732,186.11,186.06,12.43]
[1722075892057,1.33720562,186.1,186.06,12.43]
[1722075892563,6.71060562,186.1,186.05,12.43]
[1722075892753,5.3732,186.11,186.05,12.43]
[1722075892954,5.3732,186.11,186.06,12.43]
[1722075893767,5.3729,186.12,186.06,12.43]
[1722075894276,5.3729,186.12,186.02,45.0]
[1722075894277,5.3729,186.12,186.07,12.43]
[1722075896267,5.3731,186.11,186.02,45.0]
[1722075896476,5.3731,186.11,186.06,12.43]
[1722075896971,5.3731,186.11,186.02,45.0]
[1722075897468,5.3731,186.11,186.05,12.43]
[1722075897976,6.71010562,186.12,186.05,12.43]
[1722075898164,5.3729,186.12,186.05,12.43]
[1722075898571,5.3729,186.12,186.06,12.43]
[1722075900365,20.0,186.13,186.07,12.43]
[1722075900366,37.8026,186.13,186.07,12.43]
[1722075900666,5.3729,186.12,186.07,12.43]
[1722075901169,5.3732,186.11,186.06,12.43]
[1722075901575,12.43,186.12,186.05,12.43]
[1722075901778,5.3735,186.1,186.05,12.43]
[1722075901974,6.71070562,186.1,186.05,12.43]
[1722075902380,5.3735,186.1,186.05,12.43]
[1722075902579,5.3735,186.1,186.0,9.28102529]
[1722075902580,5.3737,186.09,186.04,12.43]
[1722075903067,17.8037,186.09,186.0,9.28102529]
[1722075903379,1.33720562,186.08,186.02,12.43]
[1722075903766,5.374,186.08,186.02,12.43]
[1722075903961,17.8037,186.09,186.02,12.43]
[1722075904270,17.00940562,186.11,186.07,12.43]
[1722075904271,15.6722,186.11,186.07,12.43]
[1722075904460,20.0,186.1,186.07,12.43]
[1722075904661,20.0,186.1,186.06,12.43]
[1722075905071,20.0,186.1,186.05,12.43]
[1722075905258,25.3734,186.1,186.05,12.43]
[1722075906764,26.71060562,186.1,186.05,12.43]
[1722075906966,25.3734,186.1,186.05,12.43]
[1722075908761,20.0,186.1,186.05,12.43]
[1722075909562,20.0,186.1,186.06,12.43]
[1722075910373,25.3734,186.1,186.05,12.43]
[1722075910962,20.0,186.1,186.05,12.43]
[1722075911378,5.3729,186.12,186.07,12.43]
[1722075911580,5.3726,186.13,186.08,12.43]
[1722075912566,5.3726,186.13,186.07,12.43]
[1722075913369,5.3729,186.12,186.07,12.43]
[1722075913565,5.3729,186.12,186.06,12.43]
[1722075914168,5.3729,186.12,186.07,12.43]
[1722075914367,12.43,186.14,186.07,12.43]
[1722075914586,12.43,186.15,186.07,12.43]
[1722075914799,20.0,186.14,186.07,12.43]
[1722075915176,25.3723,186.14,186.07,12.43]
[1722075916573,25.3723,186.14,186.03,95.79480068]
[1722075916774,5.3726,186.13,186.03,94.72]
[1722075917375,5.3726,186.13,186.03,45.0]
[1722075917583,5.3726,186.13,186.07,12.43]
[1722075918992,39.13950562,186.14,186.07,12.43]
[1722075919198,37.8023,186.14,186.07,12.43]
[1722075919990,26.97830376,186.16,186.08,12.43]
[1722075920193,12.43,186.15,186.08,12.43]
[1722075920395,33.8608,186.16,186.09,12.43]
[1722075921201,5.372,186.15,186.09,12.43]
[1722075922409,5.3723,186.14,186.09,12.43]
[1722075922877,1.33720562,186.19,186.09,12.43]
[1722075923077,12.43,186.18,186.1,45.0]
[1722075923298,20.0,186.17,186.11,12.43]
[1722075924105,5.3722,186.15,186.03,46.07452714]
[1722075924297,5.3722,186.15,186.04,20.0]
[1722075924298,17.8022,186.15,186.04,20.0]
[1722075924490,17.8022,186.15,186.08,12.43]
[1722075925004,17.8017,186.16,186.09,12.43]
[1722075925401,5.3717,186.16,186.1,12.43]
[1722075927599,17.8014,186.17,186.1,12.43]
[1722075928629,5.3718,186.16,186.1,12.43]
[1722075928792,13.76720562,186.17,186.1,12.43]
[1722075928997,5.372,186.15,186.1,12.43]
[1722075929913,5.372,186.15,186.04,21.07457308]
[1722075929914,17.802,186.15,186.08,12.43]
[1722075930115,17.802,186.15,185.89,20.0]
[1722075930116,5.3738,186.09,186.0,9.28102529]
[1722075930323,17.8035,186.1,186.03,12.43]
[1722075930532,5.3738,186.09,186.03,12.43]
[1722075930995,17.8035,186.1,186.03,12.43]
[1722075931505,21.24257211,186.15,186.0,9.28102529]
[1722075931506,5.3757,186.03,186.0,9.28102529]
[1722075931690,25.61717773,186.09,186.0,9.28102529]
[1722075931889,12.43,186.07,186.0,21.71102529]
[1722075932125,9.30192264,186.06,186.0,21.71102529]
[1722075932421,5.3749,186.05,186.0,21.71102529]
[1722075932613,19.14170562,186.07,186.0,21.71102529]
[1722075932925,3.92713389,186.06,186.0,21.71102529]
[1722075933109,13.76720562,186.07,186.0,21.71102529]
[1722075933320,5.3749,186.05,186.0,9.28102529]
[1722075933494,5.3754,186.03,186.0,9.28102529]
[1722075934021,5.3752,186.04,186.0,9.28102529]
[1722075934531,5.3749,186.05,186.0,9.28102529]
[1722075934890,12.43,186.06,186.0,9.28102529]
[1722075935120,5.3756,186.03,186.0,9.28102529]
[1722075935291,5.3752,186.04,186.0,9.28102529]
[1722075935495,12.43,186.03,186.0,9.28102529]
[1722075935910,17.8054,186.03,186.0,9.28102529]
[1722075936100,12.43,186.03,186.0,9.28102529]
[1722075936419,5.3755,186.03,186.0,9.28102529]
[1722075936608,17.8052,186.04,186.0,9.28102529]
[1722075939311,17.8055,186.03,186.0,9.28102529]
[1722075939707,12.43,186.02,186.0,9.28102529]
[1722075940107,12.43,186.01,186.0,9.28102529]
[1722075940816,17.806,186.01,186.0,9.28102529]
[1722075941020,12.43,186.01,186.0,9.28102529]
[1722075941717,12.43,186.01,185.94,0.7993847]
[1722075941718,5.3777,185.95,185.94,0.7993847]
[1722075942017,17.8077,185.95,185.94,0.7993847]
[1722075942218,17.8077,185.95,185.78,1.07583713]
[1722075942219,5.3796,185.89,185.78,1.07583713]
[1722075942410,16.406,185.91,185.76,22.7435]
[1722075942411,1.33720562,185.91,185.81,12.43]
[1722075942613,1.33720562,185.91,185.83,12.43]
[1722075942614,32.43,185.91,185.83,12.43]
[1722075942829,5.3795,185.89,185.83,12.43]
[1722075943123,1.33720562,185.92,185.82,12.43]
[1722075943311,12.43,185.91,185.84,12.43]
[1722075943710,2.57977773,185.95,185.86,12.43]
[1722075943928,12.43,185.93,185.86,12.43]
[1722075944310,12.43,185.93,185.87,45.0]
[1722075945428,12.43,185.92,185.87,45.0]
[1722075945625,5.3789,185.91,185.86,45.0]
[1722075945808,13.76720562,185.92,185.77,1.07607274]
[1722075946136,12.43,185.9,185.83,12.43]
[1722075946316,13.4459,185.93,185.83,12.43]
[1722075946514,12.43,185.91,185.84,12.43]
[1722075947128,5.3792,185.9,185.84,12.43]
[1722075947338,12.43,185.88,185.81,12.43]
[1722075947543,12.43,185.89,185.81,12.43]
[1722075947743,12.43,185.89,185.82,12.43]